[Event "*** Titled Tuesday Blitz"]
[Site "Chess.com"]
[Date "2020.05.26"]
[Round "4"]
[White "GHANDEEVAM2003"]
[Black "nubair1198"]
[Result "1-0"]
[WhiteElo "2935"]
[BlackElo "2718"]
[TimeControl "180+1"]
[EndTime "10:37:40 PDT"]
[Termination "GHANDEEVAM2003 won on time"]

1. d4 {[%clk 0:03:00.9]} 1... d5 {[%clk 0:02:58.9]} 2. c4 {[%clk 0:03:00.5]}
2... c6 {[%clk 0:02:59.1]} 3. Nf3 {[%clk 0:02:58.3]} 3... Nf6 {[%clk 0:02:58.9]}
4. e3 {[%clk 0:02:58.6]} 4... Bg4 {[%clk 0:02:58.1]} 5. Nc3 {[%clk 0:02:55.4]}
5... e6 {[%clk 0:02:58.5]} 6. h3 {[%clk 0:02:54]} 6... Bh5 {[%clk 0:02:59]} 7.
Qb3 {[%clk 0:02:53.6]} 7... Qb6 {[%clk 0:02:52.3]} 8. Nh4 {[%clk 0:02:53.8]}
8... Nbd7 {[%clk 0:02:51.1]} 9. g4 {[%clk 0:02:47]} 9... Bg6 {[%clk 0:02:51.5]}
10. Nxg6 {[%clk 0:02:45.3]} 10... hxg6 {[%clk 0:02:52.4]} 11. Bg2 {[%clk
0:02:46.2]} 11... g5 {[%clk 0:02:50.4]} 12. Bd2 {[%clk 0:02:42.4]} 12... O-O-O
{[%clk 0:01:58.8]} 13. Qc2 {[%clk 0:02:30.4]} 13... dxc4 {[%clk 0:01:52.7]} 14.
Na4 {[%clk 0:02:24.4]} 14... Qa6 {[%clk 0:01:47.8]} 15. O-O {[%clk 0:02:19.4]}
15... Bd6 {[%clk 0:01:45.2]} 16. Rfc1 {[%clk 0:02:18.2]} 16... Kb8 {[%clk
0:01:22.5]} 17. b3 {[%clk 0:02:12.1]} 17... Nxg4 {[%clk 0:01:12.2]} 18. bxc4
{[%clk 0:01:53]} 18... Ngf6 {[%clk 0:00:45.5]} 19. Rab1 {[%clk 0:01:48.9]} 19...
Ka8 {[%clk 0:00:41.3]} 20. c5 {[%clk 0:01:20.9]} 20... Nxc5 {[%clk 0:00:09.1]}
21. dxc5 {[%clk 0:01:16]} 21... Bc7 {[%clk 0:00:07.6]} 22. Bf1 {[%clk 0:01:16]}
22... Rxd2 {[%clk 0:00:06.1]} 23. Bxa6 {[%clk 0:01:16.6]} 23... Rxc2 {[%clk
0:00:06.6]} 24. Bxb7+ {[%clk 0:01:17.2]} 24... Kb8 {[%clk 0:00:07.2]} 25. Rxc2
{[%clk 0:01:17.8]} 25... Ba5 {[%clk 0:00:03.8]} 26. Bxc6+ {[%clk 0:01:16.4]}
26... Kc7 {[%clk 0:00:04.2]} 27. Bg2 {[%clk 0:01:17]} 27... Nd5 {[%clk 0:00:04]}
28. Bxd5 {[%clk 0:01:15.9]} 28... exd5 {[%clk 0:00:04.9]} 29. Nc3 {[%clk
0:01:16.6]} 29... Kc6 {[%clk 0:00:04.8]} 30. Ne2 {[%clk 0:01:16.4]} 30... Rxh3
{[%clk 0:00:05.2]} 31. Nd4+ {[%clk 0:01:17.3]} 31... Kd7 {[%clk 0:00:05.8]} 32.
c6+ {[%clk 0:01:17.5]} 32... Kc8 {[%clk 0:00:06.7]} 33. c7 {[%clk 0:01:16.8]}
33... Bb6 {[%clk 0:00:03.4]} 34. Nb5 {[%clk 0:01:15.6]} 1-0

[Event "*** Titled Tuesday Blitz"]
[Site "Chess.com"]
[Date "2020.05.26"]
[Round "4"]
[White "Olkaa"]
[Black "dpopadic"]
[Result "1-0"]
[WhiteElo "2610"]
[BlackElo "2381"]
[TimeControl "180+1"]
[EndTime "10:37:41 PDT"]
[Termination "Olkaa won by resignation"]

1. e4 {[%clk 0:03:00.9]} 1... c5 {[%clk 0:02:58.9]} 2. Nf3 {[%clk 0:03:00.2]}
2... Nc6 {[%clk 0:02:59.1]} 3. Nc3 {[%clk 0:02:59.3]} 3... e5 {[%clk 0:02:58.2]}
4. Bc4 {[%clk 0:02:58.2]} 4... Be7 {[%clk 0:02:58.3]} 5. d3 {[%clk 0:02:58.2]}
5... Nf6 {[%clk 0:02:58.1]} 6. Nd2 {[%clk 0:02:58.2]} 6... O-O {[%clk 0:02:58]}
7. Nf1 {[%clk 0:02:58.3]} 7... d6 {[%clk 0:02:58.3]} 8. Ne3 {[%clk 0:02:58.4]}
8... Be6 {[%clk 0:02:58.1]} 9. O-O {[%clk 0:02:58.5]} 9... Na5 {[%clk
0:02:55.6]} 10. a4 {[%clk 0:02:33.1]} 10... Nxc4 {[%clk 0:02:54.4]} 11. dxc4
{[%clk 0:02:34]} 11... a6 {[%clk 0:02:44]} 12. Qd3 {[%clk 0:02:33.1]} 12... Kh8
{[%clk 0:02:22.5]} 13. Ncd5 {[%clk 0:02:28.7]} 13... Ne8 {[%clk 0:02:20.6]} 14.
a5 {[%clk 0:02:25.4]} 14... Bg5 {[%clk 0:02:15.4]} 15. Nb6 {[%clk 0:02:17]}
15... Bxe3 {[%clk 0:02:13.1]} 16. Bxe3 {[%clk 0:02:13.5]} 16... Rb8 {[%clk
0:02:12.6]} 17. Rad1 {[%clk 0:02:05.2]} 17... Qc7 {[%clk 0:02:05.2]} 18. f4
{[%clk 0:01:57.4]} 18... f6 {[%clk 0:01:56.2]} 19. b3 {[%clk 0:01:26]} 19... h6
{[%clk 0:01:53.5]} 20. f5 {[%clk 0:01:24.1]} 20... Bf7 {[%clk 0:01:53.2]} 21.
Qd2 {[%clk 0:01:22.6]} 21... Kh7 {[%clk 0:01:49.8]} 22. g4 {[%clk 0:01:16]}
22... Qe7 {[%clk 0:01:42.1]} 23. Rf3 {[%clk 0:01:14.9]} 23... Rh8 {[%clk
0:01:41.2]} 24. Rg3 {[%clk 0:01:01.4]} 24... Kg8 {[%clk 0:01:38.7]} 25. h4
{[%clk 0:01:01.5]} 25... Kf8 {[%clk 0:01:33.7]} 26. c3 {[%clk 0:01:00.8]} 26...
Qc7 {[%clk 0:01:10.3]} 27. Qd3 {[%clk 0:00:57.1]} 27... Rd8 {[%clk 0:01:08.7]}
28. b4 {[%clk 0:00:51.9]} 28... cxb4 {[%clk 0:01:07.5]} 29. cxb4 {[%clk
0:00:52.8]} 29... Rb8 {[%clk 0:01:04.3]} 30. Bf2 {[%clk 0:00:49.3]} 30... Kg8
{[%clk 0:00:58.5]} 31. Qd2 {[%clk 0:00:46.8]} 31... Qc6 {[%clk 0:00:57]} 32. Qd3
{[%clk 0:00:41.3]} 32... Kf8 {[%clk 0:00:50.6]} 33. c5 {[%clk 0:00:37.4]} 33...
dxc5 {[%clk 0:00:50]} 34. Nd7+ {[%clk 0:00:36.9]} 34... Kg8 {[%clk 0:00:47.9]}
35. Nxb8 {[%clk 0:00:36.9]} 35... cxb4 {[%clk 0:00:40.6]} 36. Nxc6 {[%clk
0:00:36.4]} 1-0

[Event "*** Titled Tuesday Blitz"]
[Site "Chess.com"]
[Date "2020.05.26"]
[Round "4"]
[White "GeorgMeier"]
[Black "Witik"]
[Result "1-0"]
[WhiteElo "2981"]
[BlackElo "2661"]
[TimeControl "180+1"]
[EndTime "10:37:43 PDT"]
[Termination "GeorgMeier won on time"]

1. Nf3 {[%clk 0:03:00.9]} 1... Nf6 {[%clk 0:02:59.6]} 2. g3 {[%clk 0:02:59.1]}
2... d5 {[%clk 0:02:59.8]} 3. Bg2 {[%clk 0:02:58.6]} 3... c6 {[%clk 0:03:00.4]}
4. O-O {[%clk 0:02:57.3]} 4... Bg4 {[%clk 0:03:01]} 5. h3 {[%clk 0:02:57.7]}
5... Bh5 {[%clk 0:02:58.6]} 6. c4 {[%clk 0:02:57.4]} 6... Nbd7 {[%clk
0:02:58.6]} 7. cxd5 {[%clk 0:02:56.6]} 7... cxd5 {[%clk 0:02:58.7]} 8. Qb3
{[%clk 0:02:57.2]} 8... Qb6 {[%clk 0:02:32.3]} 9. Qxb6 {[%clk 0:02:56.4]} 9...
Nxb6 {[%clk 0:02:28.6]} 10. Nc3 {[%clk 0:02:56.7]} 10... e6 {[%clk 0:02:28.5]}
11. d3 {[%clk 0:02:56.5]} 11... Be7 {[%clk 0:02:24.8]} 12. Bf4 {[%clk
0:02:55.9]} 12... O-O {[%clk 0:02:22.1]} 13. Rfc1 {[%clk 0:02:56]} 13... a6
{[%clk 0:02:13.7]} 14. Rc2 {[%clk 0:02:54.6]} 14... Rac8 {[%clk 0:02:12]} 15.
Rac1 {[%clk 0:02:54.6]} 15... Nfd7 {[%clk 0:02:08.6]} 16. Nd4 {[%clk 0:02:33.7]}
16... Bg6 {[%clk 0:01:50.6]} 17. Nb3 {[%clk 0:02:32.2]} 17... Nc5 {[%clk
0:00:55.6]} 18. Nxd5 {[%clk 0:01:50.6]} 18... Nxd5 {[%clk 0:00:54.3]} 19. Bxd5
{[%clk 0:01:45.2]} 19... exd5 {[%clk 0:00:50.7]} 20. Nxc5 {[%clk 0:01:44.9]}
20... Bxc5 {[%clk 0:00:19.5]} 21. Rxc5 {[%clk 0:01:44.4]} 21... Rxc5 {[%clk
0:00:19]} 22. Rxc5 {[%clk 0:01:45.3]} 22... Bf5 {[%clk 0:00:17.6]} 23. g4 {[%clk
0:01:32.9]} 23... Be6 {[%clk 0:00:17.7]} 24. Rc7 {[%clk 0:01:32.1]} 24... Bc8
{[%clk 0:00:12.3]} 25. f3 {[%clk 0:01:24.2]} 25... Re8 {[%clk 0:00:12.4]} 26.
Kf2 {[%clk 0:01:24.5]} 26... h6 {[%clk 0:00:12.2]} 27. h4 {[%clk 0:01:24.6]}
27... b5 {[%clk 0:00:09.9]} 28. Rc6 {[%clk 0:01:17.7]} 28... Be6 {[%clk
0:00:04.6]} 29. Rxa6 {[%clk 0:01:17.2]} 29... Rc8 {[%clk 0:00:05]} 30. Rb6
{[%clk 0:01:13.1]} 30... d4 {[%clk 0:00:04.4]} 31. Rxb5 {[%clk 0:01:08.9]} 31...
Bxa2 {[%clk 0:00:03.9]} 32. Rb4 {[%clk 0:01:09.4]} 32... Rc2 {[%clk 0:00:03.9]}
33. Be5 {[%clk 0:01:08.7]} 33... Be6 {[%clk 0:00:01.1]} 34. Bxd4 {[%clk
0:01:08.3]} 1-0

[Event "*** Titled Tuesday Blitz"]
[Site "Chess.com"]
[Date "2020.05.26"]
[Round "4"]
[White "smshk35"]
[Black "realmadridtv"]
[Result "1-0"]
[WhiteElo "2306"]
[BlackElo "2446"]
[TimeControl "180+1"]
[EndTime "10:37:47 PDT"]
[Termination "smshk35 won by resignation"]

1. e4 {[%clk 0:03:00.9]} 1... e5 {[%clk 0:02:59.7]} 2. Nf3 {[%clk 0:02:59]} 2...
Nc6 {[%clk 0:03:00.3]} 3. d4 {[%clk 0:02:58.4]} 3... exd4 {[%clk 0:03:00]} 4.
Nxd4 {[%clk 0:02:59.3]} 4... Nf6 {[%clk 0:03:00.6]} 5. Nxc6 {[%clk 0:02:58.6]}
5... bxc6 {[%clk 0:03:00.6]} 6. e5 {[%clk 0:02:58.9]} 6... Qe7 {[%clk
0:03:01.3]} 7. Qe2 {[%clk 0:02:59.1]} 7... Nd5 {[%clk 0:03:02]} 8. c4 {[%clk
0:02:59.4]} 8... Nb6 {[%clk 0:03:02.6]} 9. Nd2 {[%clk 0:02:58.9]} 9... g6 {[%clk
0:02:58]} 10. Ne4 {[%clk 0:02:52.3]} 10... Bg7 {[%clk 0:02:55]} 11. Bg5 {[%clk
0:02:47.9]} 11... Qb4+ {[%clk 0:02:52.2]} 12. Qd2 {[%clk 0:02:47.9]} 12... Qxd2+
{[%clk 0:02:51.1]} 13. Kxd2 {[%clk 0:02:48.8]} 13... d5 {[%clk 0:02:45.2]} 14.
exd6 {[%clk 0:02:43.4]} 14... O-O {[%clk 0:02:45.2]} 15. Bf6 {[%clk 0:02:11.5]}
15... Bf5 {[%clk 0:02:34.3]} 16. Bxg7 {[%clk 0:02:07.7]} 16... Kxg7 {[%clk
0:02:35.2]} 17. Ng3 {[%clk 0:02:06.5]} 17... Be6 {[%clk 0:02:29.9]} 18. dxc7
{[%clk 0:02:04.1]} 18... Nxc4+ {[%clk 0:02:26.4]} 19. Bxc4 {[%clk 0:02:02.4]}
19... Bxc4 {[%clk 0:02:27.3]} 20. Ne4 {[%clk 0:01:38.2]} 20... a5 {[%clk
0:01:56.3]} 21. Nd6 {[%clk 0:01:35.4]} 21... Be6 {[%clk 0:01:56.4]} 22. Rac1
{[%clk 0:01:28.5]} 22... Ra6 {[%clk 0:01:56.3]} 23. Rc5 {[%clk 0:01:19.7]} 23...
Kf6 {[%clk 0:01:53.4]} 24. Rhc1 {[%clk 0:01:16.2]} 24... Ke7 {[%clk 0:01:33.9]}
25. Nb7 {[%clk 0:01:03.7]} 25... Kd7 {[%clk 0:01:27.3]} 26. Nxa5 {[%clk
0:01:00]} 26... Bd5 {[%clk 0:01:27.2]} 27. b4 {[%clk 0:00:47.9]} 27... Rb6
{[%clk 0:01:24.2]} 28. a3 {[%clk 0:00:30.9]} 28... Ra8 {[%clk 0:01:23.4]} 29. f3
{[%clk 0:00:27.9]} 29... h5 {[%clk 0:01:21.2]} 30. Ke3 {[%clk 0:00:23]} 30...
Kxc7 {[%clk 0:01:20.1]} 31. Rxd5 {[%clk 0:00:22.7]} 31... Re8+ {[%clk 0:01:19]}
32. Kf2 {[%clk 0:00:20.6]} 32... Re6 {[%clk 0:01:19.8]} 33. Rdc5 {[%clk
0:00:20.7]} 33... Kd7 {[%clk 0:01:19.5]} 34. Rxc6 {[%clk 0:00:21]} 34... Rbxc6
{[%clk 0:01:18.3]} 35. Rxc6 {[%clk 0:00:21.9]} 35... Re5 {[%clk 0:01:18.8]} 36.
Rc5 {[%clk 0:00:21]} 36... Re6 {[%clk 0:01:18.1]} 37. Nc4 {[%clk 0:00:20.6]}
37... g5 {[%clk 0:01:16.7]} 38. a4 {[%clk 0:00:20.9]} 38... f6 {[%clk 0:01:17]}
39. a5 {[%clk 0:00:21.3]} 39... g4 {[%clk 0:01:15.3]} 40. Nb6+ {[%clk
0:00:21.4]} 40... Kd6 {[%clk 0:01:15.1]} 41. a6 {[%clk 0:00:21.4]} 41... gxf3
{[%clk 0:01:13.3]} 42. gxf3 {[%clk 0:00:20]} 42... Re7 {[%clk 0:01:13.2]} 43.
Nc8+ {[%clk 0:00:19.5]} 1-0

[Event "*** Titled Tuesday Blitz"]
[Site "Chess.com"]
[Date "2020.05.26"]
[Round "4"]
[White "WastefulJustice"]
[Black "pavelalexandru07"]
[Result "1-0"]
[WhiteElo "2385"]
[BlackElo "2149"]
[TimeControl "180+1"]
[EndTime "10:37:49 PDT"]
[Termination "WastefulJustice won by resignation"]

1. e4 {[%clk 0:03:00.9]} 1... c5 {[%clk 0:02:59.2]} 2. Nf3 {[%clk 0:03:00.2]}
2... d6 {[%clk 0:02:59.4]} 3. d4 {[%clk 0:03:00.2]} 3... cxd4 {[%clk 0:02:59.5]}
4. Nxd4 {[%clk 0:03:01.1]} 4... Nf6 {[%clk 0:02:59.8]} 5. Nc3 {[%clk 0:03:01.5]}
5... a6 {[%clk 0:03:00]} 6. Be2 {[%clk 0:03:01.9]} 6... e5 {[%clk 0:02:59.7]} 7.
Nb3 {[%clk 0:03:02.4]} 7... Be6 {[%clk 0:02:59.8]} 8. O-O {[%clk 0:03:02]} 8...
Be7 {[%clk 0:03:00]} 9. f4 {[%clk 0:02:59.6]} 9... b5 {[%clk 0:02:51.7]} 10. Be3
{[%clk 0:02:46.9]} 10... Nbd7 {[%clk 0:02:29.5]} 11. f5 {[%clk 0:02:45.7]} 11...
Bc4 {[%clk 0:02:28.7]} 12. Bxc4 {[%clk 0:02:45.8]} 12... bxc4 {[%clk 0:02:29.6]}
13. Nd2 {[%clk 0:02:41.8]} 13... Qc7 {[%clk 0:02:26.7]} 14. Qe2 {[%clk
0:02:41.4]} 14... Rc8 {[%clk 0:02:23.7]} 15. Kh1 {[%clk 0:02:38.3]} 15... O-O
{[%clk 0:02:11.8]} 16. g4 {[%clk 0:02:36.3]} 16... Qc6 {[%clk 0:01:28.2]} 17. g5
{[%clk 0:02:34.8]} 17... Nxe4 {[%clk 0:01:27.7]} 18. Ndxe4 {[%clk 0:02:32.9]}
18... d5 {[%clk 0:01:27]} 19. f6 {[%clk 0:02:25.3]} 19... Bd8 {[%clk 0:01:19.2]}
20. fxg7 {[%clk 0:02:06.6]} 20... Kxg7 {[%clk 0:01:16.5]} 21. Rf6 {[%clk
0:01:55.6]} 21... Qa8 {[%clk 0:01:04.3]} 22. Qh5 {[%clk 0:01:05.5]} 22... d4
{[%clk 0:00:48.6]} 23. Rh6 {[%clk 0:01:02.1]} 23... Rh8 {[%clk 0:00:34]} 24. Rf1
{[%clk 0:01:01.7]} 24... f5 {[%clk 0:00:23.7]} 25. Rxf5 {[%clk 0:00:53.3]} 25...
Bf6 {[%clk 0:00:15.5]} 26. gxf6+ {[%clk 0:00:51.5]} 26... Kg8 {[%clk 0:00:15.5]}
27. Qg4+ {[%clk 0:00:42.1]} 27... Kf8 {[%clk 0:00:15.2]} 28. Qg7+ {[%clk
0:00:42.1]} 1-0

[Event "*** Titled Tuesday Blitz"]
[Site "Chess.com"]
[Date "2020.05.26"]
[Round "4"]
[White "MiroVlasenko"]
[Black "TigrVShlyape"]
[Result "0-1"]
[WhiteElo "2678"]
[BlackElo "2855"]
[TimeControl "180+1"]
[EndTime "10:37:50 PDT"]
[Termination "TigrVShlyape won by resignation"]

1. d4 {[%clk 0:03:00.9]} 1... d5 {[%clk 0:02:59.2]} 2. Nf3 {[%clk 0:02:57.7]}
2... Nf6 {[%clk 0:02:59]} 3. e3 {[%clk 0:02:57.7]} 3... g6 {[%clk 0:02:57.3]} 4.
c4 {[%clk 0:02:53.4]} 4... Bg7 {[%clk 0:02:57.4]} 5. Nc3 {[%clk 0:02:53.8]} 5...
O-O {[%clk 0:02:56.3]} 6. Bd2 {[%clk 0:02:54]} 6... c6 {[%clk 0:02:53.8]} 7. Rc1
{[%clk 0:02:51.9]} 7... Bg4 {[%clk 0:02:43.2]} 8. Qb3 {[%clk 0:02:37.1]} 8...
Qb6 {[%clk 0:02:25.6]} 9. Ne5 {[%clk 0:02:33]} 9... Be6 {[%clk 0:02:22]} 10. c5
{[%clk 0:02:25.4]} 10... Qc7 {[%clk 0:02:20.5]} 11. f4 {[%clk 0:02:19.7]} 11...
Nbd7 {[%clk 0:02:19.8]} 12. Be2 {[%clk 0:02:10.9]} 12... Nxe5 {[%clk 0:02:19.3]}
13. fxe5 {[%clk 0:02:10.6]} 13... Ng4 {[%clk 0:01:48.8]} 14. h3 {[%clk
0:01:51.4]} 14... Nxe5 {[%clk 0:01:47.9]} 15. dxe5 {[%clk 0:01:42.7]} 15... d4
{[%clk 0:01:48.1]} 16. Bc4 {[%clk 0:01:22.6]} 16... Bxc4 {[%clk 0:01:42.8]} 17.
Qxc4 {[%clk 0:01:22.2]} 17... dxc3 {[%clk 0:01:43.3]} 18. Bxc3 {[%clk
0:01:22.6]} 18... Bxe5 {[%clk 0:01:43.4]} 19. O-O {[%clk 0:01:22.7]} 19... Rad8
{[%clk 0:01:37.7]} 20. Rf3 {[%clk 0:01:06.9]} 20... Bxc3 {[%clk 0:01:36.6]} 21.
Qxc3 {[%clk 0:01:06.8]} 21... Qd7 {[%clk 0:01:27.5]} 22. Rcf1 {[%clk 0:01:03.8]}
22... Qe6 {[%clk 0:01:27.1]} 23. a3 {[%clk 0:00:58.5]} 23... Rd7 {[%clk
0:01:21.6]} 24. Kh2 {[%clk 0:00:51.4]} 24... f6 {[%clk 0:01:17.8]} 25. Qa5
{[%clk 0:00:45.6]} 25... a6 {[%clk 0:01:17.3]} 26. Qb4 {[%clk 0:00:45.6]} 26...
Qe5+ {[%clk 0:01:16.2]} 27. Kh1 {[%clk 0:00:43.2]} 27... Kg7 {[%clk 0:01:08.7]}
28. Kg1 {[%clk 0:00:39]} 28... e6 {[%clk 0:01:06.9]} 29. Kh1 {[%clk 0:00:35.2]}
29... Rff7 {[%clk 0:01:06.6]} 30. Kg1 {[%clk 0:00:34.5]} 30... Rd5 {[%clk
0:00:58.5]} 31. Qb6 {[%clk 0:00:19.3]} 31... Rxc5 {[%clk 0:00:39.8]} 0-1

[Event "*** Titled Tuesday Blitz"]
[Site "Chess.com"]
[Date "2020.05.26"]
[Round "4"]
[White "BogdanBelyakov89"]
[Black "GOGIEFF"]
[Result "1/2-1/2"]
[WhiteElo "2633"]
[BlackElo "2893"]
[TimeControl "180+1"]
[EndTime "10:37:52 PDT"]
[Termination "Game drawn by repetition"]

1. e4 {[%clk 0:03:00.9]} 1... c5 {[%clk 0:02:57.7]} 2. c3 {[%clk 0:03:00.7]}
2... d5 {[%clk 0:02:56.6]} 3. exd5 {[%clk 0:03:00.5]} 3... Qxd5 {[%clk
0:02:57.5]} 4. Nf3 {[%clk 0:03:01.1]} 4... g6 {[%clk 0:02:57.9]} 5. Na3 {[%clk
0:03:00]} 5... Bg7 {[%clk 0:02:57.6]} 6. Bc4 {[%clk 0:02:59.7]} 6... Qe4+ {[%clk
0:02:50.2]} 7. Kf1 {[%clk 0:02:59.5]} 7... Nh6 {[%clk 0:02:45.2]} 8. d3 {[%clk
0:02:52.7]} 8... Qg4 {[%clk 0:02:40]} 9. Bxh6 {[%clk 0:02:40.7]} 9... Bxh6
{[%clk 0:02:35.5]} 10. Bxf7+ {[%clk 0:02:40.3]} 10... Kf8 {[%clk 0:02:35.4]} 11.
Bc4 {[%clk 0:02:21.4]} 11... Nc6 {[%clk 0:02:32.6]} 12. Qe2 {[%clk 0:02:17.2]}
12... Kg7 {[%clk 0:02:24.6]} 13. Bd5 {[%clk 0:02:11.2]} 13... Rf8 {[%clk
0:02:15.7]} 14. Nc4 {[%clk 0:02:06.1]} 14... Bf5 {[%clk 0:02:00.2]} 15. h3
{[%clk 0:01:21.1]} 15... Qf4 {[%clk 0:01:47.9]} 16. g4 {[%clk 0:01:08.4]} 16...
Bd7 {[%clk 0:01:39]} 17. Rg1 {[%clk 0:00:56.1]} 17... Rad8 {[%clk 0:01:26.2]}
18. Bxc6 {[%clk 0:00:47.2]} 18... Bxc6 {[%clk 0:01:25.1]} 19. Qe5+ {[%clk
0:00:47.2]} 19... Kg8 {[%clk 0:01:23.4]} 20. Qxf4 {[%clk 0:00:47.3]} 20... Bxf4
{[%clk 0:01:21.7]} 21. Nfe5 {[%clk 0:00:45.6]} 21... Bd5 {[%clk 0:01:20]} 22. a4
{[%clk 0:00:43.3]} 22... Bxc4 {[%clk 0:01:20.1]} 23. Nxc4 {[%clk 0:00:42.7]}
23... Rxd3 {[%clk 0:01:20.1]} 24. Kg2 {[%clk 0:00:41.3]} 24... Rfd8 {[%clk
0:01:19.1]} 25. Rge1 {[%clk 0:00:39.6]} 25... Kf7 {[%clk 0:01:19.3]} 26. Re4
{[%clk 0:00:37.5]} 26... g5 {[%clk 0:01:06.9]} 27. Rae1 {[%clk 0:00:36.3]} 27...
R8d7 {[%clk 0:01:06.4]} 28. Ne5+ {[%clk 0:00:30]} 28... Bxe5 {[%clk 0:01:05.8]}
29. Rxe5 {[%clk 0:00:30.9]} 29... R3d5 {[%clk 0:01:06.3]} 30. c4 {[%clk
0:00:29.7]} 30... Rxe5 {[%clk 0:01:00.8]} 31. Rxe5 {[%clk 0:00:30.6]} 31... b6
{[%clk 0:00:59.9]} 32. Rxg5 {[%clk 0:00:29]} 32... Rd2 {[%clk 0:00:59.5]} 33. a5
{[%clk 0:00:28.5]} 33... Rxb2 {[%clk 0:00:58.7]} 34. axb6 {[%clk 0:00:28.8]}
34... axb6 {[%clk 0:00:59.6]} 35. Rh5 {[%clk 0:00:29.2]} 35... Kg7 {[%clk
0:00:58]} 36. Rg5+ {[%clk 0:00:28.7]} 36... Kf6 {[%clk 0:00:57.9]} 37. Rh5
{[%clk 0:00:29.2]} 37... Kg6 {[%clk 0:00:54.7]} 38. Re5 {[%clk 0:00:29]} 38...
Kf6 {[%clk 0:00:54.3]} 39. Rh5 {[%clk 0:00:28.9]} 39... Kg6 {[%clk 0:00:50.1]}
40. Re5 {[%clk 0:00:28.8]} 40... Kf6 {[%clk 0:00:50.5]} 41. Rh5 {[%clk
0:00:28.9]} 1/2-1/2

[Event "*** Titled Tuesday Blitz"]
[Site "Chess.com"]
[Date "2020.05.26"]
[Round "4"]
[White "TudorAnton"]
[Black "chenrip"]
[Result "1-0"]
[WhiteElo "2458"]
[BlackElo "2281"]
[TimeControl "180+1"]
[EndTime "10:37:52 PDT"]
[Termination "TudorAnton won by resignation"]

1. d4 {[%clk 0:03:00.9]} 1... Nf6 {[%clk 0:02:59.3]} 2. c4 {[%clk 0:02:57.9]}
2... e6 {[%clk 0:02:59.6]} 3. Nf3 {[%clk 0:02:54.8]} 3... Bb4+ {[%clk
0:02:59.1]} 4. Bd2 {[%clk 0:02:49.7]} 4... Bxd2+ {[%clk 0:02:58.1]} 5. Qxd2
{[%clk 0:02:48.5]} 5... O-O {[%clk 0:02:58.1]} 6. Nc3 {[%clk 0:02:48]} 6... d5
{[%clk 0:02:58.5]} 7. e3 {[%clk 0:02:47.2]} 7... b6 {[%clk 0:02:58.1]} 8. cxd5
{[%clk 0:02:46.6]} 8... Nxd5 {[%clk 0:02:57.5]} 9. Bd3 {[%clk 0:02:47.2]} 9...
Ba6 {[%clk 0:02:54.2]} 10. Bxa6 {[%clk 0:02:45.6]} 10... Nxa6 {[%clk 0:02:53.8]}
11. e4 {[%clk 0:02:46.3]} 11... Nxc3 {[%clk 0:02:52.9]} 12. bxc3 {[%clk
0:02:47.2]} 12... c5 {[%clk 0:02:52.5]} 13. O-O {[%clk 0:02:47.6]} 13... cxd4
{[%clk 0:02:52.1]} 14. cxd4 {[%clk 0:02:48.5]} 14... Qd6 {[%clk 0:02:40.3]} 15.
Rfd1 {[%clk 0:02:42.9]} 15... Rac8 {[%clk 0:02:37.6]} 16. h3 {[%clk 0:02:42]}
16... h6 {[%clk 0:02:33.1]} 17. Rac1 {[%clk 0:02:40]} 17... Nb4 {[%clk
0:02:09.4]} 18. d5 {[%clk 0:01:55.2]} 18... exd5 {[%clk 0:02:06.8]} 19. a3
{[%clk 0:01:49.9]} 19... Na6 {[%clk 0:02:01.5]} 20. Rxc8 {[%clk 0:01:45.7]}
20... Rxc8 {[%clk 0:01:59.5]} 21. exd5 {[%clk 0:01:45.6]} 21... Rc5 {[%clk
0:01:35.5]} 22. Nh4 {[%clk 0:01:28.1]} 22... Nc7 {[%clk 0:01:30.6]} 23. Nf5
{[%clk 0:01:27.7]} 23... Qd7 {[%clk 0:01:23.6]} 24. Ne3 {[%clk 0:01:01]} 24...
Qd6 {[%clk 0:01:15.4]} 25. Qd4 {[%clk 0:01:00.1]} 25... g6 {[%clk 0:01:06]} 26.
Ng4 {[%clk 0:00:55.5]} 26... f5 {[%clk 0:00:20.4]} 27. Nxh6+ {[%clk 0:00:52.2]}
27... Kh7 {[%clk 0:00:20.2]} 28. Nf7 {[%clk 0:00:51.5]} 28... Qf8 {[%clk
0:00:12.9]} 29. Ng5+ {[%clk 0:00:51.4]} 29... Kh6 {[%clk 0:00:12.6]} 30. Qh4+
{[%clk 0:00:50.6]} 30... Kg7 {[%clk 0:00:12.9]} 31. d6 {[%clk 0:00:49.6]} 31...
Nd5 {[%clk 0:00:08.2]} 32. Ne6+ {[%clk 0:00:48.6]} 1-0

[Event "*** Titled Tuesday Blitz"]
[Site "Chess.com"]
[Date "2020.05.26"]
[Round "4"]
[White "HouseOfDurin"]
[Black "FeketeBarika"]
[Result "0-1"]
[WhiteElo "2036"]
[BlackElo "2241"]
[TimeControl "180+1"]
[EndTime "10:37:53 PDT"]
[Termination "FeketeBarika won by resignation"]

1. d4 {[%clk 0:03:00.9]} 1... e6 {[%clk 0:03:00.9]} 2. h4 {[%clk 0:02:58.4]}
2... c5 {[%clk 0:02:59.4]} 3. c3 {[%clk 0:02:55.1]} 3... Nf6 {[%clk 0:02:55.8]}
4. Bg5 {[%clk 0:02:54.1]} 4... h6 {[%clk 0:02:53.3]} 5. Bxf6 {[%clk 0:02:53.5]}
5... Qxf6 {[%clk 0:02:53.3]} 6. e4 {[%clk 0:02:52.4]} 6... d5 {[%clk 0:02:43]}
7. e5 {[%clk 0:02:36.6]} 7... Qd8 {[%clk 0:02:36.9]} 8. f4 {[%clk 0:02:30.6]}
8... Nc6 {[%clk 0:02:19.8]} 9. Nf3 {[%clk 0:02:29.8]} 9... Qb6 {[%clk
0:02:17.2]} 10. Qd2 {[%clk 0:02:27.7]} 10... Bd7 {[%clk 0:02:15.4]} 11. Be2
{[%clk 0:02:01.3]} 11... Rc8 {[%clk 0:02:10.5]} 12. O-O {[%clk 0:01:59.2]} 12...
Be7 {[%clk 0:02:03.5]} 13. Na3 {[%clk 0:01:19.6]} 13... a6 {[%clk 0:01:39.3]}
14. Nc2 {[%clk 0:01:00.6]} 14... O-O {[%clk 0:01:27.8]} 15. dxc5 {[%clk
0:00:52.8]} 15... Bxc5+ {[%clk 0:01:22.2]} 16. Ncd4 {[%clk 0:00:52.8]} 16... Ne7
{[%clk 0:01:14.1]} 17. a3 {[%clk 0:00:44.4]} 17... Nf5 {[%clk 0:01:07.7]} 18. b4
{[%clk 0:00:42.4]} 18... Bxd4+ {[%clk 0:01:07]} 19. cxd4 {[%clk 0:00:42.9]}
19... Bb5 {[%clk 0:01:01.2]} 20. Rf2 {[%clk 0:00:19.9]} 20... Bxe2 {[%clk
0:00:58.4]} 21. Rxe2 {[%clk 0:00:20.8]} 21... Rc4 {[%clk 0:00:56.5]} 22. Rd1
{[%clk 0:00:17.8]} 22... Rfc8 {[%clk 0:00:56.7]} 23. g4 {[%clk 0:00:17.2]} 23...
Ng3 {[%clk 0:00:55.1]} 24. Rg2 {[%clk 0:00:15.4]} 24... Ne4 {[%clk 0:00:55.2]}
25. Qd3 {[%clk 0:00:15.2]} 25... Rc3 {[%clk 0:00:55.1]} 26. Qf1 {[%clk
0:00:14.8]} 26... Rxa3 {[%clk 0:00:51.2]} 27. f5 {[%clk 0:00:14.3]} 27... Rcc3
{[%clk 0:00:47.5]} 28. Nd2 {[%clk 0:00:09.6]} 28... Qxd4+ {[%clk 0:00:46.4]} 29.
Kh1 {[%clk 0:00:07.2]} 29... Rh3+ {[%clk 0:00:45.5]} 30. Rh2 {[%clk 0:00:06.7]}
30... Ng3+ {[%clk 0:00:44.7]} 0-1